fUST/lending_fUST_20250617
["ID","MTS","AMOUNT","RATE_DAILY","PERIOD"]
[366186845,1750104636679,-409.46,0.000248,31]
[366186846,1750104636689,-409.46,0.000248,31]
[366186847,1750104636699,-409.46,0.000248,31]
[366186848,1750104636709,-409.46,0.000248,31]
[366186849,1750104636719,-409.46,0.000248,31]
[366186850,1750104636729,-409.46,0.000248,31]
[366186851,1750104636739,-409.46,0.000248,31]
[366186852,1750104636749,-409.46,0.000248,31]
[366186853,1750104636759,-409.46,0.000248,31]
[366186854,1750104636769,-409.46,0.000248,31]
[366186855,1750104636779,-409.46,0.000248,31]
[366186856,1750104636790,-409.46,0.000248,31]
[366186857,1750104636803,-409.46,0.000248,31]
[366186858,1750104636940,-152.34,0.000248,31]
[366186859,1750104636950,-14342.47405928,0.00024815,2]
[366186860,1750104636960,-1064.75155422,0.00024815,2]
[366186861,1750104636970,-14342.47405927,0.00024836,2]
[366186862,1750104636980,-14342.47405927,0.00024856,2]
[366186863,1750104636991,-1562.847558,0.0002486,2]
[366186864,1750104637000,-500.0,0.00024873,2]
[366186865,1750104637011,-500.0,0.00024873,2]
[366186866,1750104637026,-500.0,0.00024873,2]
[366186867,1750104637037,-500.0,0.00024873,2]
[366186868,1750104637046,-11579.04793142,0.000249,2]
[366186869,1750104637056,-13653.4170031,0.000249,2]
[366186870,1750104637065,-42176.53150814,0.000249,2]
[366186874,1750104638637,-460.0,0.00021917,4]
[366186875,1750104638647,-460.0,0.00022191,4]
[366186876,1750104638658,-843.38136626,0.000249,2]
[366186877,1750104638670,-866.93609126,0.000249,2]
[366186878,1750104638683,-592.52723391,0.000249,2]
[366186879,1750104638740,-617631.15282143,0.000249,2]
[366186880,1750104638750,-689.85,0.00024915,4]
[366186881,1750104638760,-476.57,0.00024931,4]
[366186882,1750104638771,-460.0,0.00024931,4]
[366186883,1750104638781,-460.0,0.00024931,4]
[366186884,1750104638791,-151.0,0.00024956,7]
[366186885,1750104638804,-151.66546,0.00024956,7]
[366186886,1750104638815,-151.0,0.00024956,7]
[366186887,1750104638825,-185.465959,0.00024956,7]
[366186888,1750104638835,-151.0,0.00024956,7]
[366186889,1750104638845,-151.0,0.00024956,7]
[366186890,1750104638855,-151.0,0.00024956,7]
[366186891,1750104638864,-293.178687,0.00024956,7]
[366186892,1750104638877,-151.0,0.00024956,7]
[366186893,1750104638887,-151.0,0.00024956,7]
[366186894,1750104638897,-151.0,0.00024956,7]
[366186895,1750104638906,-151.0,0.00024956,7]
[366186896,1750104638916,-151.0,0.00024956,7]
[366186897,1750104638926,-151.0,0.00024956,7]
[366186898,1750104638936,-82896.22298864,0.00024956,20]
[366187210,1750104643764,-27293.8917213,0.00024956,20]
[366190439,1750105096116,235.764214,0.00013699,2]
[366190446,1750105532585,2619.0,0.00024649,120]
[366190497,1750105831974,-235.764214,0.00020187,2]
[366190500,1750105831983,-1000.0,0.0002046,2]
[366190503,1750105831993,-175.57884,0.00020545,2]
[366190505,1750105832003,-184.335499,0.00020654,2]
[366190507,1750105832012,-1484.01,0.00020779,2]
[366190509,1750105832022,-268.66850277,0.00021,2]
[366190511,1750105832031,-200.9565096,0.00021,2]
[366190513,1750105832041,-500.0,0.00021122,2]
[366190515,1750105832050,-195.23573109,0.00021854,2]
[366190517,1750105832059,-24900.0,0.00021855,2]
[366190519,1750105832069,-967.28,0.00021916,2]
[366190521,1750105832078,-633.74647541,0.00021916,2]
[366190522,1750105832087,-166.60404433,0.00021916,2]
[366190524,1750105832096,-175.272,0.00021917,2]
[366190526,1750105832106,-460.0,0.00021917,4]
[366190528,1750105832116,-460.0,0.00021917,4]
[366190530,1750105832125,-460.0,0.00021917,4]
[366190532,1750105832135,-460.0,0.00021917,4]
[366190534,1750105832144,-460.0,0.00021917,4]
[366190536,1750105832153,-460.0,0.00021917,4]
[366190538,1750105832163,-460.0,0.00021917,4]
[366190540,1750105832172,-460.0,0.00021917,4]
[366190542,1750105832182,-460.0,0.00021917,4]
[366190544,1750105832191,-460.0,0.00021917,4]
[366190546,1750105832202,-460.0,0.00021917,4]
[366190548,1750105832211,-460.0,0.00021917,4]
[366190550,1750105832221,-460.0,0.00021917,4]
[366190552,1750105832230,-460.0,0.00021917,4]
[366190554,1750105832240,-460.0,0.00021917,4]
[366190556,1750105832249,-460.0,0.00021917,4]
[366190558,1750105832259,-460.0,0.00021917,4]
[366190560,1750105832268,-460.0,0.00021917,4]
[366190562,1750105832278,-460.0,0.00021917,4]
[366190564,1750105832290,-460.0,0.00021917,2]
[366190566,1750105832299,-890.43,0.0002218,10]
[366190568,1750105832309,-312595.97548,0.0002219,2]
[366190570,1750105832318,-597.64,0.00022191,4]
[366190572,1750105832330,-460.0,0.00022191,4]
[366190574,1750105832339,-460.0,0.00022191,4]
[366190576,1750105832348,-604.16,0.00022191,4]
[366190578,1750105832358,-460.0,0.00022191,4]
[366190580,1750105832368,-460.0,0.00022191,4]
[366190582,1750105832378,-460.0,0.00022465,4]
[366190584,1750105832388,-323.98,0.00022465,4]
[366190586,1750105832397,-460.0,0.00022465,4]
[366190588,1750105832407,-150.0,0.00022549,2]
[366190590,1750105832417,-2968.01,0.00022668,2]
[366190592,1750105832426,-500.0,0.00022736,4]
[366190594,1750105832435,-492.67,0.00022736,4]
[366190595,1750105832444,-460.0,0.00022736,4]
[366190597,1750105832454,-460.0,0.00022736,4]
[366190599,1750105832463,-460.0,0.00022736,4]
[366190601,1750105832473,-460.0,0.00022736,4]
[366190603,1750105832485,-460.0,0.00022736,4]
[366190605,1750105832494,-460.0,0.00022736,4]
[366190607,1750105832504,-460.0,0.00022736,4]
[366190609,1750105832513,-460.0,0.00022736,4]
[366190610,1750105832522,-168.0,0.00022738,2]
[366190612,1750105832531,-460.0,0.00022739,4]
[366190614,1750105832541,-269.14,0.00022739,4]
[366190633,1750105832723,-1125.0,0.00022833,2]
[366190635,1750105832739,-66015.54594833,0.0002299,2]
[366190644,1750105832816,-20749.8763186,0.0002299,2]
[366190646,1750105832828,-6398.67979468,0.0002299,2]
[366191109,1750105837929,-460.0,0.00022736,4]
[366191111,1750105837940,-6835.89793839,0.0002299,2]
[366191113,1750105837950,-16228.01041066,0.00023,20]
[366191115,1750105837960,-18255.44599851,0.00023,20]
[366191117,1750105837970,-460.0,0.0002301,4]
[366191119,1750105837980,-460.0,0.0002301,4]
[366191121,1750105837989,-460.0,0.0002301,4]
[366191123,1750105837999,-460.0,0.00023013,4]
[366191125,1750105838008,-207.4,0.00023234,2]
[366191127,1750105838018,-460.0,0.00023284,4]
[366191129,1750105838027,-460.0,0.00023284,4]
[366191131,1750105838036,-460.0,0.00023284,4]
[366191133,1750105838046,-460.0,0.00023287,4]
[366191135,1750105838056,-500.0,0.00023288,2]
[366191137,1750105838065,-500.0,0.00023288,2]
[366191139,1750105838075,-500.0,0.00023288,2]
[366191141,1750105838084,-500.0,0.00023288,2]
[366191143,1750105838094,-265.70013888,0.00023288,2]
[366191145,1750105838103,-500.0,0.00023288,2]
[366191147,1750105838113,-500.0,0.00023288,2]
[366191149,1750105838123,-500.0,0.00023288,2]
[366191151,1750105838132,-500.0,0.00023288,2]
[366191153,1750105838141,-500.0,0.00023288,2]
[366191155,1750105838151,-500.0,0.00023288,2]
[366191157,1750105838160,-500.0,0.00023288,2]
[366191159,1750105838169,-500.0,0.00023288,2]
[366191161,1750105838179,-500.0,0.00023288,2]
[366191163,1750105838188,-153.0,0.00023315,2]
[366191165,1750105838198,-153.0,0.00023315,2]
[366191167,1750105838207,-60462.92837439,0.0002335,2]
[366191169,1750105838216,-460.0,0.00023558,4]
[366191171,1750105838226,-460.0,0.00023561,4]
[366191173,1750105838235,-460.0,0.00023832,4]
[366191175,1750105838245,-460.0,0.00023835,4]
[366191177,1750105838254,-500.0,0.00023973,2]
[366191179,1750105838263,-500.0,0.00023973,2]
[366191181,1750105838272,-500.0,0.00023973,2]
[366191184,1750105838282,-500.0,0.00023973,2]
[366191186,1750105838294,-600.0,0.00023973,2]
[366191188,1750105838303,-500.0,0.00023973,2]
[366191190,1750105838313,-500.0,0.00023973,2]
[366191192,1750105838323,-500.0,0.00023973,2]
[366191194,1750105838333,-500.0,0.00023973,2]
[366191196,1750105838342,-153.0,0.00023978,2]
[366191197,1750105838351,-5000.0,0.00023986,2]
[366191199,1750105838364,-500.0,0.00023986,2]
[366191201,1750105838373,-500.0,0.00023986,2]
[366191203,1750105838384,-500.0,0.00023986,2]
[366191205,1750105838395,-500.0,0.00023986,2]
[366191207,1750105838406,-590.02,0.00024,2]
[366191209,1750105838416,-30286.31960583,0.00024,2]
[366191211,1750105838425,-429511.75188849,0.00024,2]
[366191213,1750105838435,-460.0,0.00024106,4]
[366191215,1750105838444,-460.0,0.00024109,4]
[366191217,1750105838454,-1147.9989108,0.00024137,2]
[366191219,1750105838463,-354.146424,0.00024137,2]
[366191221,1750105838473,-314.7076032,0.00024137,2]
[366191223,1750105838482,-653.0,0.00024213,2]
[366191225,1750105838492,-2160.0,0.00024213,2]
[366191227,1750105838501,-406.0,0.00024213,2]
[366191229,1750105838511,-460.0,0.0002438,4]
[366191231,1750105838520,-460.0,0.00024383,4]
[366191233,1750105838530,-1346.95371,0.00024458,3]
[366191235,1750105838539,-177.0,0.00024459,2]
[366191237,1750105838548,-177.0,0.00024465,2]
[366191239,1750105838558,-177.0,0.0002448,2]
[366191241,1750105838567,-177.0,0.00024514,2]
[366191243,1750105838576,-1000.0,0.00024521,2]
[366191245,1750105838586,-1200.0,0.00024521,2]
[366191247,1750105838596,-500.0,0.00024521,2]
[366191249,1750105838605,-1000.0,0.00024521,2]
[366191251,1750105838615,-748.59908114,0.00024521,2]
[366191253,1750105838625,-4452.02,0.00024557,2]
[366191255,1750105838634,-215.0738,0.00024603,2]
[366191257,1750105838643,-177.0,0.0002461,2]
[366191259,1750105838652,-161.70263068,0.00024611,2]
[366191261,1750105838662,-16702.01611094,0.0002465,2]
[366191263,1750105838672,-409.20891055,0.00024654,4]
[366191265,1750105838681,-460.0,0.00024657,4]
[366191267,1750105838691,-153.0,0.00024681,2]
[366191269,1750105838701,-153.0,0.00024681,2]
[366191271,1750105838710,-153.0,0.00024682,2]
[366191273,1750105838719,-153.0,0.00024682,2]
[366191275,1750105838729,-153.0,0.00024682,2]
[366191277,1750105838738,-153.0,0.00024682,2]
[366191279,1750105838747,-153.0,0.00024682,2]
[366191281,1750105838757,-153.0,0.00024682,2]
[366191283,1750105838766,-153.0,0.00024682,2]
[366191285,1750105838776,-153.0,0.00024683,2]
[366191287,1750105838786,-153.0,0.00024683,2]
[366191289,1750105838795,-153.0,0.00024683,2]
[366191291,1750105838804,-153.0,0.00024683,2]
[366191293,1750105838814,-153.0,0.00024683,2]
[366191296,1750105838824,-151.0,0.00024711,7]
[366191298,1750105838833,-377.25325967,0.0002472,2]
[366191300,1750105838842,-161.70263068,0.00024736,2]
[366191302,1750105838852,-177.0,0.00024742,2]
[366191303,1750105838862,-156.90249138,0.00024796,2]
[366191305,1750105838871,-2000.0,0.000248,2]
[366191308,1750105838881,-2000.0,0.000248,2]
[366191309,1750105838890,-343.98,0.000248,31]
[366191311,1750105838900,-343.98,0.000248,31]
[366191313,1750105838909,-343.98,0.000248,31]
[366191315,1750105838919,-343.98,0.000248,31]
[366191317,1750105838928,-343.98,0.000248,31]
[366191319,1750105838938,-343.98,0.000248,31]
[366191321,1750105838947,-343.98,0.000248,31]
[366191323,1750105838957,-343.98,0.000248,31]
[366191325,1750105838967,-343.98,0.000248,31]
[366191327,1750105838977,-343.98,0.000248,31]
[366191329,1750105838986,-343.98,0.000248,31]
[366191331,1750105838996,-343.98,0.000248,31]
[366191333,1750105839006,-343.98,0.000248,31]
[366191335,1750105839015,-343.98,0.000248,31]
[366191337,1750105839025,-343.98,0.000248,31]
[366191339,1750105839035,-343.98,0.000248,31]
[366191341,1750105839045,-161.70263068,0.00024861,2]
[366191344,1750105839054,-500.0,0.00024873,2]
[366191346,1750105839063,-501.8668994,0.00024873,2]
[366191348,1750105839073,-500.0,0.00024873,2]
[366191350,1750105839083,-170.05818164,0.00024873,2]
[366191352,1750105839092,-4618.87179596,0.00024886,2]
[366191353,1750105839102,-5789.52396571,0.000249,2]
[366191355,1750105839111,-6826.70850155,0.000249,2]
[366191358,1750105839121,-2000.0,0.000249,2]
[366191359,1750105839130,-84307.00440657,0.000249,2]
[366191456,1750105840018,-460.0,0.0002301,4]
[366191458,1750105840028,-403.65506351,0.00023284,4]
[366191463,1750105840067,-56.34493649,0.00023284,4]
[366191465,1750105840077,-347.3278735,0.00023558,4]
[366191467,1750105840089,-112.6721265,0.00023558,4]
[366191469,1750105840099,-460.0,0.00023832,4]
[366191471,1750105840109,-223.14975466,0.00024106,4]
[366191473,1750105840121,-236.85024534,0.00024106,4]
[366191476,1750105840131,-460.0,0.0002438,4]
[366191478,1750105840140,-460.0,0.00024654,4]
[366191480,1750105840150,-660.89841364,0.000249,2]
[366191482,1750105840163,-53615.01227526,0.000249,2]
[366191484,1750105840174,-10990.78960596,0.000249,2]
[366191741,1750105842914,-492.99993457,0.00021854,2]
[366191743,1750105842924,-450.0,0.00021916,2]
[366191745,1750105842933,-964.0,0.00024213,2]
[366191747,1750105842944,-52054.342013,0.000249,2]
[366191750,1750105842956,-759.16187172,0.000249,2]
[366191919,1750106320260,222.088623,0.00013699,2]
[366191929,1750106663740,2188.0,0.00024657,120]
[366191980,1750107032251,-194.36196893,0.00020137,2]
[366191982,1750107032261,-222.088623,0.00020187,2]
[366191984,1750107032271,-1543.60541613,0.00020535,2]
[366191986,1750107032282,-1833.71875417,0.00020535,2]
[366191988,1750107032292,-182.94125731,0.00020604,2]
[366191990,1750107032302,-500.0,0.00021122,2]
[366191992,1750107032312,-1444.16,0.00021141,2]
[366191994,1750107032323,-784.73280047,0.00021256,2]
[366192010,1750107032474,-415.26719953,0.00021256,2]
[366192013,1750107032486,-3247.09605483,0.00021257,2]
[366192015,1750107032496,-160.0,0.00021642,2]
[366192017,1750107032506,-300.0,0.0002179,2]
[366192019,1750107032515,-300.0,0.00021791,2]
[366192021,1750107032525,-268.8338297,0.00021792,2]
[366192023,1750107032535,-500.0,0.00021792,2]
[366192025,1750107032544,-438.6555915,0.00021792,2]
[366192027,1750107032554,-500.0,0.00021792,2]
[366192029,1750107032564,-175.27342098,0.00021792,2]
[366192031,1750107032573,-24900.0,0.00021793,2]
[366192033,1750107032583,-17087.9346,0.00021916,2]
[366192035,1750107032593,-607.07088979,0.00021917,2]
[366192037,1750107032604,-190.35361079,0.00021917,2]
[366192039,1750107032614,-460.0,0.00021917,2]
[366192041,1750107032624,-460.0,0.00021917,4]
[366192043,1750107032634,-460.0,0.00021917,4]
[366192045,1750107032643,-460.0,0.00021917,4]
[366192047,1750107032652,-460.0,0.00021917,4]
[366192049,1750107032662,-460.0,0.00021917,4]
[366192051,1750107032672,-540.12,0.00021917,2]
[366192053,1750107032682,-460.0,0.00021917,4]
[366192055,1750107032691,-460.0,0.00021917,4]
[366192057,1750107032701,-460.0,0.00021917,4]
[366192059,1750107032710,-460.0,0.00021917,4]
[366192061,1750107032721,-170.0,0.00022,2]
[366192063,1750107032735,-597.58674823,0.00022,2]
[366192066,1750107032747,-895.04723736,0.00022,2]
[366192151,1750107042179,-139.88283922,0.00022,2]
[366192220,1750107046281,-249.82283656,0.00021917,4]
[366193084,1750107082731,150.0,0.00019817,2]
[366193090,1750107318833,209.443134,0.00013699,2]
[366193093,1750107384024,150.0,0.00019817,2]
[366193094,1750107395914,-2412453.14452667,0.00024955,60]
[366193095,1750107395941,-2342.97,0.00024955,120]
[366193096,1750107395968,-236.0,0.00024955,120]
[366193097,1750107395995,-149990.0,0.00024955,120]
[366193167,1750108232275,-209.443134,0.00020187,2]
[366193169,1750108232285,-319.17256086,0.00020501,2]
[366193190,1750108232492,-1268.29443354,0.00020501,2]
[366193192,1750108232503,-154.15271675,0.00020544,2]
[366193194,1750108232513,-251.74445988,0.00020644,2]
[366193196,1750108232522,-500.0,0.00020644,2]
[366193198,1750108232532,-25.02900483,0.00020644,2]
[366193514,1750108238220,-274.97099517,0.00020644,2]
[366193516,1750108238230,-1200.0,0.00020644,2]
[366193517,1750108238240,-24900.0,0.00020645,2]
[366193519,1750108238252,-500.0,0.00021122,2]
[366193521,1750108238262,-178.69101,0.00021162,2]
[366193523,1750108238272,-160.0,0.00021635,2]
[366193525,1750108238281,-229.90125484,0.00021635,2]
[366193526,1750108238290,-213.36025772,0.00021635,2]
[366193527,1750108238300,-500.0,0.00021916,2]
[366193528,1750108238309,-507.05891405,0.00021916,2]
[366193529,1750108238321,-457.88930111,0.00021917,2]
[366193531,1750108238330,-460.0,0.00021917,4]
[366193533,1750108238339,-460.0,0.00021917,4]
[366193535,1750108238349,-460.0,0.00021917,4]
[366193537,1750108238358,-460.0,0.00021917,4]
[366193539,1750108238368,-460.0,0.00021917,4]
[366193540,1750108238378,-460.0,0.00021917,4]
[366193542,1750108238387,-460.0,0.00021917,4]
[366193544,1750108238398,-460.0,0.00021917,4]
[366193546,1750108238408,-460.0,0.00021917,4]
[366193548,1750108238418,-460.0,0.00021917,4]
[366193550,1750108238427,-460.0,0.00021917,4]
[366193553,1750108238438,-26378.42699924,0.00022,2]
[366193555,1750108238447,-151.0,0.00022,2]
[366193557,1750108238457,-460.0,0.00022191,4]
[366193558,1750108238467,-460.0,0.00022191,4]
[366193559,1750108238476,-460.0,0.00022191,4]
[366193560,1750108238486,-460.0,0.00022191,4]
[366193561,1750108238496,-460.0,0.00022191,4]
[366193562,1750108238505,-460.0,0.00022191,4]
[366193563,1750108238515,-460.0,0.00022465,4]
[366193564,1750108238525,-460.0,0.00022465,4]
[366193565,1750108238535,-460.0,0.00022465,4]
[366193566,1750108238546,-460.0,0.00022465,4]
[366193567,1750108238556,-460.0,0.00022465,4]
[366193568,1750108238568,-460.0,0.00022465,4]
[366193569,1750108238578,-896.67703063,0.00022571,2]
[366193570,1750108238591,-783.32296937,0.00022571,2]
[366193571,1750108238601,-643.44293424,0.00022622,2]
[366193572,1750108238612,-388.0,0.00022676,2]
[366193573,1750108238624,-460.0,0.00022739,4]
[366193574,1750108238634,-409.20891055,0.00022739,4]
[366193575,1750108238643,-460.0,0.00022739,4]
[366193576,1750108238653,-312.12,0.00022739,4]
[366193577,1750108238663,-719.0,0.00022826,2]
[366193578,1750108238672,-302.93112976,0.00022873,2]
[366193579,1750108238684,-416.06887024,0.00022873,2]
[366193580,1750108238696,-7.32393808,0.00022886,2]
[366193581,1750108238709,-495.37297952,0.00022886,2]
[366193582,1750108238719,-151.0,0.00022943,2]
[366193583,1750108238729,-76.51097248,0.0002297,2]
[366193584,1750108238741,-74.48902752,0.0002297,2]
[366193585,1750108238751,-204.68101798,0.00022998,2]
[366193586,1750108238761,-200.0,0.00023,2]
[366193587,1750108238772,-500.0,0.00023,2]
[366193588,1750108238782,-460.0,0.00023013,4]
[366193589,1750108238791,-460.0,0.00023013,4]
[366193590,1750108238801,-666.0,0.00023036,2]
[366193591,1750108238812,-365.2762568,0.00023041,2]
[366193592,1750108238822,-502.45172187,0.00023043,2]
[366193593,1750108238831,-500.0,0.00023043,2]
[366193594,1750108238842,-500.38178413,0.00023043,2]
[366193595,1750108238852,-150.0,0.000231,2]
[366193596,1750108238862,-719.0,0.00023212,2]
[366193597,1750108238874,-500.0,0.00023233,2]
[366193598,1750108238883,-397.93499696,0.00023278,2]
[366193599,1750108238894,-460.0,0.00023287,4]
[366193600,1750108238903,-460.0,0.00023287,4]
[366193601,1750108238913,-500.0,0.00023314,2]
[366193602,1750108238923,-354.146424,0.00023315,2]
[366193603,1750108238933,-1147.9989108,0.00023315,2]
[366193604,1750108238943,-314.7076032,0.00023315,2]
[366193605,1750108238953,-288.78272537,0.00023467,2]
[366193606,1750108238964,-221.0,0.0002348,2]
[366193607,1750108238973,-221.0,0.00023529,2]
[366193608,1750108238983,-477.14953137,0.00023545,2]
[366193609,1750108238997,-1231.47,0.00023545,2]
[366194017,1750108243344,-1527.13,0.00021381,2]
[366194019,1750108243353,-3054.25,0.00023324,2]
[366194021,1750108243363,-263.18989979,0.00023545,2]
[366194023,1750108243373,-1708.38046863,0.00023545,2]
[366194025,1750108243383,-460.0,0.00023561,4]
[366194027,1750108243393,-460.0,0.00023561,4]
[366194029,1750108243402,-168.0,0.00023582,2]
[366194031,1750108243412,-1688.0,0.00023654,2]
[366194033,1750108243421,-500.0,0.00023654,2]
[366194035,1750108243431,-500.0,0.00023654,2]
[366194037,1750108243441,-500.0,0.00023654,2]
[366194039,1750108243451,-500.0,0.00023654,2]
[366194041,1750108243461,-500.0,0.00023654,2]
[366194043,1750108243470,-500.0,0.00023654,2]
[366194045,1750108243480,-500.0,0.00023654,2]
[366194047,1750108243490,-500.0,0.00023654,2]
[366194049,1750108243500,-500.0,0.00023654,2]
[366194051,1750108243510,-500.0,0.00023654,2]
[366194053,1750108243519,-207.4,0.00023654,2]
[366194055,1750108243529,-784.3,0.00023699,10]
[366194057,1750108243539,-1750.45600006,0.00023709,2]
[366194059,1750108243549,-47.68365318,0.00023835,4]
[366194061,1750108243561,-412.31634682,0.00023835,4]
[366194063,1750108243571,-460.0,0.00023835,4]
[366194065,1750108243581,-603.87,0.00024,2]
[366194067,1750108243590,-5000.0,0.00024032,2]
[366194069,1750108243600,-460.0,0.00024109,4]
[366194071,1750108243610,-460.0,0.00024109,4]
[366194074,1750108243624,-64.41201994,0.00024238,2]
[366194076,1750108243635,-2095.58798006,0.00024238,2]
[366194078,1750108243645,-653.0,0.00024238,2]
[366194080,1750108243655,-151.0,0.00024255,7]
[366194082,1750108243666,-168.0,0.00024276,2]
[366194083,1750108243676,-460.0,0.00024383,4]
[366194084,1750108243686,-221.21001944,0.00024383,4]
[366194085,1750108243698,-1696.384615,0.00024401,3]
[366194087,1750108243709,-168.0,0.00024439,2]
[366194089,1750108243719,-151.0,0.00024489,7]
[366194091,1750108243729,-221.0,0.00024522,2]
[366194093,1750108243738,-406.78014321,0.00024577,2]
[366194095,1750108243749,-406.78014319,0.00024643,2]
[366194097,1750108243759,-156.86111699,0.00024657,4]
[366194099,1750108243769,-156.90249138,0.00024672,2]
[366194101,1750108243778,-153.0,0.00024674,2]
[366194103,1750108243788,-153.0,0.00024674,2]
[366194105,1750108243798,-153.0,0.00024674,2]
[366194107,1750108243808,-153.0,0.00024675,2]
[366194109,1750108243819,-153.0,0.00024675,2]
[366194111,1750108243828,-153.0,0.00024675,2]
[366194113,1750108243839,-153.0,0.00024675,2]
[366194115,1750108243848,-153.0,0.00024675,2]
[366194117,1750108243858,-153.0,0.00024675,2]
[366194119,1750108243867,-153.0,0.00024675,2]
[366194121,1750108243877,-153.0,0.00024675,2]
[366194123,1750108243887,-153.0,0.00024676,2]
[366194125,1750108243896,-153.0,0.00024676,2]
[366194127,1750108243905,-153.0,0.00024676,2]
[366194129,1750108243915,-153.0,0.00024676,2]
[366194131,1750108243925,-153.0,0.00024676,2]
[366194133,1750108243935,-323.0,0.00024678,2]
[366194135,1750108243945,-648.83,0.00024682,5]
[366194137,1750108243954,-406.78014319,0.00024709,2]
[366194139,1750108243964,-553.68135072,0.00024723,2]
[366194185,1750108246311,-246.31864928,0.00024723,2]
[366194186,1750108246322,-151.0,0.00024724,7]
[366194187,1750108246332,-406.78014319,0.00024775,2]
[366194188,1750108246341,-274.0,0.00024798,2]
[366194189,1750108246352,-14.71646576,0.000248,2]
[366194190,1750108246367,-1985.28353424,0.000248,2]
[366194191,1750108246378,-13.2991582,0.000248,2]
[366194192,1750108246426,-1986.7008418,0.000248,2]
[366194193,1750108246438,-343.98,0.000248,31]
[366194194,1750108246448,-343.98,0.000248,31]
[366194195,1750108246458,-343.98,0.000248,31]
[366194196,1750108246467,-343.98,0.000248,31]
[366194197,1750108246477,-343.98,0.000248,31]
[366194198,1750108246488,-317.88855907,0.000248,31]
[366194208,1750108282187,188.49882,0.00013699,2]
[366194223,1750109053502,1912.6871234,0.00019821,2]
[366194226,1750109191329,150.0,0.000189,2]
[366194229,1750109321357,2124.66248706,0.0002,4]
[366194230,1750109321381,107.76792128,0.0002,4]
[366194232,1750109327700,9892.23207872,0.0002,2]
[366194233,1750109327725,627.80417675,0.0002,2]
[366194234,1750109380120,1185.95989557,0.0002,2]
[366194265,1750109432572,-188.49882,0.00020187,2]
[366194266,1750109432582,-387.7628196,0.00020276,2]
[366194267,1750109432593,-158.7851493,0.00020509,2]
[366194269,1750109432603,-268.036515,0.00020517,2]
[366194271,1750109432613,-1200.0,0.00020606,2]
[366194272,1750109432623,-300.0,0.00020607,2]
[366194273,1750109432632,-275.0,0.00020607,2]
[366194274,1750109432642,-300.0,0.00020607,2]
[366194275,1750109432653,-500.0,0.00020608,2]
[366194276,1750109432663,-459.39826906,0.00020608,2]
[366194277,1750109432682,-287.14059521,0.00020608,2]
[366194278,1750109432698,-339.63366529,0.00020608,2]
[366194279,1750109432709,-186.61257414,0.00020608,2]
[366194280,1750109432720,-462.80119761,0.00020608,2]
[366194281,1750109432731,-24900.0,0.00020609,2]
[366194282,1750109432741,-182.618,0.00020609,2]
[366194283,1750109432753,-500.0,0.00021122,2]
[366194284,1750109432763,-1468.82,0.0002121,2]
[366194285,1750109432773,-213.36025772,0.00021679,2]
[366194286,1750109432784,-315.81,0.00021907,10]
[366194287,1750109432794,-500.0,0.00021911,2]
[366194288,1750109432805,-199.02485015,0.00021911,2]